Workbook

Sheet 권별 진도
A1: 전주대 자체입력 권별 진도표
J2: 2013.04.29
A3: 권수 | B3: 쪽수 | C3: 분량 | D3: 입력자 | E3: v1 작업 진도 | F3: v1 잔여량 | G3: v2 검수범위 | H3: v2 1차검수 | I3: v2 2차검수 | J3: v2 3차검수 | K3: 비고
A4: 26 | B4: 1-273 | C4: =273-1 -> 272 | D4: 심경순 | E4: O | G4: 좌동 | H4: 이혜령
B5: 277-596 | C5: =534-277 -> 257 | D5: 이혜령 | E5: O
B6: 597-888 | C6: =888-597 -> 291 | D6: 김정화 | E6: O | G6: 좌동 | H6: 이혜령
A7: 27 | B7: 3-266 | C7: =266-3 -> 263 | D7: 송정현 | E7: 118 | F7: =266-E7 -> 148 | G7: 좌동 | H7: 이혜령
B8: 267-386 | C8: =386-267 -> 119 | D8: 김가희 | E8: O
B9: 387-572 | C9: =572-387 -> 185 | D9: 김유빈 | E9: 508 | F9: =572-E9 -> 64
B10: 573-584 | C10: =584-573 -> 11 | D10: 김가희 | E10: O
B11: 585-724 | C11: =724-585 -> 139 | D11: 안성은 | E11: 625 | F11: =724-E11 -> 99
B12: 725-852 | C12: =852-725 -> 127 | D12: 김가희 | E12: 770 | F12: =852-E12 -> 82
B13: 853-860 | C13: =860-853 -> 7 | D13: 조수연
B14: 861-878 | C14: =878-861 -> 17 | D14: 조수연
B15: 879-980 | C15: =980-879 -> 101 | D15: 김정화 | E15: 920 | F15: =980-E15 -> 60
B16: 981-994 | C16: =994-981 -> 13 | D16: 김정화
A17: 28 | B17: 3-52 | C17: =52-3 -> 49 | D17: 심경순 | E17: O | G17: 좌동 | H17: 이혜령
B18: 53-102 | C18: =102-53 -> 49 | D18: 이혜령 | E18: O
B19: 103-154 | C19: =154-103 -> 51 | D19: 김정화 | E19: O | G19: 좌동 | H19: 이혜령
B20: 155-200 | C20: =200-155 -> 45 | D20: 송정현 | E20: O | G20: 좌동 | H20: 이혜령
B21: 205-255 | C21: =255-205 -> 50 | D21: 김가희 | E21: O | G21: 좌동 | H21: 심경순 | I21: 김정화 | J21: 이혜령
B22: 256-305 | C22: =305-256 -> 49 | D22: 김유빈 | E22: O | G22: 좌동 | H22: 송정현 | I22: 문경득 | J22: 이혜령
B23: 306-357 | C23: =357-306 -> 51 | D23: 안성은 | E23: O | G23: 좌동 | H23: 송정현 | I23: 문경득 | J23: 이혜령
B24: 358-618 | C24: =618-358 -> 260 | D24: 조수연 | E24: 594 | F24: =618-E24 -> 24
B25: 619-637 | C25: =637-619 -> 18 | D25: 김가희 | E25: O | G25: 좌동 | H25: 심경순 | I25: 김정화 | J25: 이혜령
B26: 639-669 | C26: =669-639 -> 30 | D26: 김유빈 | E26: O | G26: 좌동 | H26: 심경순 | I26: 김정화 | J26: 이혜령
B27: 673-836 | C27: =836-673 -> 163 | D27: 안성은 | E27: O | G27: 좌동 | H27: 심경순 | I27: 김정화 | J27: 이혜령
G28: 724-774 | H28: 송정현 | I28: 문경득 | J28: 이혜령
G29: 775-836 | H29: 심경순 | I29: 김정화 | J29: 이혜령
B30: 837-857 | C30: =857-837 -> 20 | D30: 김가희 | E30: O | G30: 837-857 | H30: 심경순
B31: 859-928 | C31: =928-859 -> 69 | D31: 김유빈 | E31: O | G31: 859-876 | H31: 심경순
G32: 877-927 | H32: 송정현
B33: 929-948 | C33: =948-929 -> 19 | D33: 김가희 | E33: O | G33: 928-948 | H33: 송정현
A34: 29 | B34: 1-70 | C34: =70-1 -> 69 | D34: 문경득 | E34: 34 | F34: =C34-E34 -> 35
B35: 71-80 | C35: =80-71 -> 9 | D35: 문경득
B36: 81-142 | C36: =142-81 -> 61
B37: 143-188 | C37: =188-143 -> 45
B38: 189-226 | C38: =226-189 -> 37
B39: 227-266 | C39: =266-227 -> 39
B40: 267-364 | C40: =364-267 -> 97
B41: 365-408 | C41: =408-365 -> 43
B42: 409-440 | C42: =440-409 -> 31
B43: 491-550 | C43: =550-491 -> 59
B44: 551-568 | C44: =568-551 -> 17
B45: 569-604 | C45: =604-569 -> 35
B46: 605-630 | C46: =630-605 -> 25
B47: 631-676 | C47: =676-631 -> 45
B48: 677-752 | C48: =752-677 -> 75
B49: 753-808 | C49: =808-753 -> 55
B50: 809-856 | C50: =856-809 -> 47

Sheet Sheet3
